[Event "*** Titled Tuesday Blitz"]
[Site "Chess.com"]
[Date "2021.03.02"]
[Round "3"]
[White "Matols"]
[Black "HackingKid98"]
[Result "1-0"]
[WhiteElo "2274"]
[BlackElo "2443"]
[TimeControl "180+1"]
[EndTime "10:29:35 PST"]
[Termination "Matols won on time"]

1. d4 {[%clk 0:03:00.9]} 1... d5 {[%clk 0:02:57.5]} 2. c4 {[%clk 0:03:00.8]}
2... e6 {[%clk 0:02:56.3]} 3. Nf3 {[%clk 0:03:00.9]} 3... c6 {[%clk 0:02:55.4]}
4. e3 {[%clk 0:02:59.7]} 4... Nf6 {[%clk 0:02:54.2]} 5. b3 {[%clk 0:02:59.6]}
5... Bd6 {[%clk 0:02:49]} 6. Bd3 {[%clk 0:02:59.6]} 6... O-O {[%clk 0:02:46.9]}
7. O-O {[%clk 0:02:59.5]} 7... Qe7 {[%clk 0:02:47.3]} 8. Bb2 {[%clk 0:02:58.8]}
8... Nbd7 {[%clk 0:02:46.6]} 9. Qc2 {[%clk 0:02:47.9]} 9... e5 {[%clk
0:02:44.8]} 10. dxe5 {[%clk 0:02:43.1]} 10... Nxe5 {[%clk 0:02:45.7]} 11. Nxe5
{[%clk 0:02:39.5]} 11... Bxe5 {[%clk 0:02:46.6]} 12. Bxe5 {[%clk 0:02:37.9]}
12... Qxe5 {[%clk 0:02:47.5]} 13. Nd2 {[%clk 0:02:38]} 13... dxc4 {[%clk
0:02:41.1]} 14. Nxc4 {[%clk 0:02:34.4]} 14... Qc7 {[%clk 0:02:39.1]} 15. h3
{[%clk 0:02:33.4]} 15... Be6 {[%clk 0:02:37.1]} 16. Rfd1 {[%clk 0:02:32.4]}
16... Rfd8 {[%clk 0:02:35.1]} 17. Rac1 {[%clk 0:02:31.6]} 17... Rd7 {[%clk
0:02:34.1]} 18. Bf5 {[%clk 0:02:16.9]} 18... Bxf5 {[%clk 0:02:30.2]} 19. Qxf5
{[%clk 0:02:15.9]} 19... Rad8 {[%clk 0:02:29.9]} 20. Qf3 {[%clk 0:02:03.2]}
20... b6 {[%clk 0:01:57.7]} 21. Nb2 {[%clk 0:01:51]} 21... c5 {[%clk 0:01:53.9]}
22. Rxd7 {[%clk 0:01:43.7]} 22... Rxd7 {[%clk 0:01:50.2]} 23. b4 {[%clk
0:01:38.7]} 23... Rd2 {[%clk 0:01:25.8]} 24. bxc5 {[%clk 0:01:33.2]} 24... bxc5
{[%clk 0:01:16.9]} 25. Nc4 {[%clk 0:01:30.1]} 25... Rd8 {[%clk 0:01:11.4]} 26.
e4 {[%clk 0:01:22.1]} 26... h6 {[%clk 0:01:08.8]} 27. e5 {[%clk 0:01:18.8]}
27... Nd5 {[%clk 0:01:08.7]} 28. Nd6 {[%clk 0:01:15.2]} 28... Nb6 {[%clk
0:01:07.9]} 29. Qg3 {[%clk 0:00:56.2]} 29... Kh7 {[%clk 0:00:39.7]} 30. Qf4
{[%clk 0:00:51.1]} 30... Kg8 {[%clk 0:00:38.2]} 31. Qg3 {[%clk 0:00:29.1]} 31...
Kh7 {[%clk 0:00:37.6]} 32. Nf5 {[%clk 0:00:27.8]} 32... g6 {[%clk 0:00:35.9]}
33. Nd6 {[%clk 0:00:26.8]} 33... c4 {[%clk 0:00:33.8]} 34. Ne4 {[%clk
0:00:25.3]} 34... Rd4 {[%clk 0:00:16.5]} 35. Nf6+ {[%clk 0:00:24]} 35... Kh8
{[%clk 0:00:15.9]} 36. Qe3 {[%clk 0:00:21.7]} 36... Rh4 {[%clk 0:00:13.9]} 37.
Kh2 {[%clk 0:00:13.6]} 37... Nd7 {[%clk 0:00:09.4]} 38. Ne8 {[%clk 0:00:07.7]}
38... Qd8 {[%clk 0:00:08]} 39. Nd6 {[%clk 0:00:06.9]} 39... Qe7 {[%clk
0:00:07.9]} 40. g3 {[%clk 0:00:05.9]} 40... Rh5 {[%clk 0:00:07.9]} 41. Nxc4
{[%clk 0:00:04.8]} 41... Nxe5 {[%clk 0:00:06.3]} 42. Nxe5 {[%clk 0:00:04.7]}
42... Rxe5 {[%clk 0:00:07.2]} 43. Qxh6+ {[%clk 0:00:04.2]} 43... Kg8 {[%clk
0:00:05.3]} 44. Rc8+ {[%clk 0:00:04.8]} 44... Qe8 {[%clk 0:00:05.5]} 45. Rxe8+
{[%clk 0:00:05.2]} 45... Rxe8 {[%clk 0:00:06.4]} 46. Qf4 {[%clk 0:00:05.1]}
46... Re7 {[%clk 0:00:06.3]} 47. h4 {[%clk 0:00:05.3]} 47... Kg7 {[%clk
0:00:05.8]} 48. Qg5 {[%clk 0:00:05.4]} 48... Rd7 {[%clk 0:00:05.6]} 49. h5
{[%clk 0:00:05.2]} 49... Rd6 {[%clk 0:00:04.8]} 50. hxg6 {[%clk 0:00:05.1]}
50... Rxg6 {[%clk 0:00:04.6]} 51. Qe5+ {[%clk 0:00:05.3]} 51... Kf8 {[%clk
0:00:04.5]} 52. Qd4 {[%clk 0:00:05]} 52... Ra6 {[%clk 0:00:03.9]} 53. Qd8+
{[%clk 0:00:04.2]} 53... Kg7 {[%clk 0:00:03.3]} 54. Qd5 {[%clk 0:00:03.8]} 54...
Rg6 {[%clk 0:00:02.1]} 55. Kh3 {[%clk 0:00:03.8]} 55... Ra6 {[%clk 0:00:01.7]}
56. g4 {[%clk 0:00:04]} 1-0

[Event "*** Titled Tuesday Blitz"]
[Site "Chess.com"]
[Date "2021.03.02"]
[Round "3"]
[White "azikom"]
[Black "VFernandezB"]
[Result "1-0"]
[WhiteElo "2685"]
[BlackElo "2487"]
[TimeControl "180+1"]
[EndTime "10:29:40 PST"]
[Termination "azikom won by checkmate"]

1. d4 {[%clk 0:03:00]} 1... Nf6 {[%clk 0:00:34.3]} 2. Nf3 {[%clk 0:02:58.6]}
2... g6 {[%clk 0:00:34.4]} 3. c4 {[%clk 0:02:58]} 3... d5 {[%clk 0:00:32.2]} 4.
Nc3 {[%clk 0:02:58.9]} 4... Bg7 {[%clk 0:00:32.1]} 5. Qa4+ {[%clk 0:02:57.4]}
5... Bd7 {[%clk 0:00:30.9]} 6. Qb3 {[%clk 0:02:57.6]} 6... dxc4 {[%clk
0:00:31.5]} 7. Qxc4 {[%clk 0:02:57.7]} 7... O-O {[%clk 0:00:31.9]} 8. Bf4 {[%clk
0:02:57.5]} 8... Bc6 {[%clk 0:00:32.1]} 9. e3 {[%clk 0:02:57.1]} 9... Nbd7
{[%clk 0:00:32.4]} 10. Be2 {[%clk 0:02:56.2]} 10... Nb6 {[%clk 0:00:32.7]} 11.
Qd3 {[%clk 0:02:50.1]} 11... Nfd5 {[%clk 0:00:32.9]} 12. Bg3 {[%clk 0:02:49.8]}
12... f5 {[%clk 0:00:32.2]} 13. Be5 {[%clk 0:02:42.7]} 13... Nb4 {[%clk
0:00:30.8]} 14. Qd1 {[%clk 0:02:39]} 14... N6d5 {[%clk 0:00:30.9]} 15. Bxg7
{[%clk 0:02:36.6]} 15... Kxg7 {[%clk 0:00:30.9]} 16. O-O {[%clk 0:02:36.9]}
16... e6 {[%clk 0:00:28.3]} 17. Ne5 {[%clk 0:02:34]} 17... Qd6 {[%clk
0:00:23.9]} 18. a3 {[%clk 0:02:21.2]} 18... Nxc3 {[%clk 0:00:23.5]} 19. bxc3
{[%clk 0:02:21.5]} 19... Nd5 {[%clk 0:00:24.2]} 20. Qd2 {[%clk 0:02:08]} 20...
Nf6 {[%clk 0:00:16.4]} 21. c4 {[%clk 0:01:58]} 21... Rad8 {[%clk 0:00:16.5]} 22.
Qb2 {[%clk 0:01:57.2]} 22... Kg8 {[%clk 0:00:13.3]} 23. c5 {[%clk 0:01:31.6]}
23... Qe7 {[%clk 0:00:09.5]} 24. Nxc6 {[%clk 0:01:27.7]} 24... bxc6 {[%clk
0:00:10.4]} 25. Qb7 {[%clk 0:01:27.5]} 25... Qd7 {[%clk 0:00:09.3]} 26. Bf3
{[%clk 0:01:21.8]} 26... Nd5 {[%clk 0:00:09.1]} 27. Rab1 {[%clk 0:01:20.1]}
27... Rb8 {[%clk 0:00:06.4]} 28. Qxb8 {[%clk 0:01:19]} 28... Rxb8 {[%clk
0:00:07.3]} 29. Rxb8+ {[%clk 0:01:19.3]} 29... Kg7 {[%clk 0:00:06.7]} 30. Rfb1
{[%clk 0:01:19.5]} 30... Nc3 {[%clk 0:00:06.5]} 31. R1b3 {[%clk 0:01:15.5]}
31... Ne4 {[%clk 0:00:05.9]} 32. Bxe4 {[%clk 0:01:13.3]} 32... fxe4 {[%clk
0:00:06.8]} 33. h3 {[%clk 0:01:04.1]} 33... e5 {[%clk 0:00:06.7]} 34. dxe5
{[%clk 0:01:03.7]} 34... Qd1+ {[%clk 0:00:06.7]} 35. Kh2 {[%clk 0:01:03.7]}
35... Qd5 {[%clk 0:00:07.5]} 36. Rb1 {[%clk 0:00:49.1]} 36... Qxe5+ {[%clk
0:00:07.7]} 37. Kg1 {[%clk 0:00:49.6]} 37... Qxc5 {[%clk 0:00:08.3]} 38. a4
{[%clk 0:00:48.8]} 38... Qd6 {[%clk 0:00:08]} 39. R8b7 {[%clk 0:00:44.7]} 39...
a5 {[%clk 0:00:07.8]} 40. Rc1 {[%clk 0:00:42.8]} 40... c5 {[%clk 0:00:08.1]} 41.
Rb5 {[%clk 0:00:42.4]} 41... Qd2 {[%clk 0:00:07.2]} 42. Rbxc5 {[%clk 0:00:41.4]}
42... Kh6 {[%clk 0:00:07.5]} 43. Rxc7 {[%clk 0:00:39.9]} 43... Qa2 {[%clk
0:00:08]} 44. R7c4 {[%clk 0:00:39.4]} 44... Qb2 {[%clk 0:00:05.2]} 45. g3 {[%clk
0:00:37.3]} 45... Qa3 {[%clk 0:00:05.4]} 46. Kg2 {[%clk 0:00:37.2]} 46... Kg5
{[%clk 0:00:05.9]} 47. R1c3 {[%clk 0:00:35.3]} 47... Qb2 {[%clk 0:00:04.6]} 48.
Rc5+ {[%clk 0:00:33.8]} 48... Kh6 {[%clk 0:00:04.7]} 49. h4 {[%clk 0:00:29.7]}
49... Qe2 {[%clk 0:00:03.8]} 50. Rc1 {[%clk 0:00:29.2]} 50... Qf3+ {[%clk
0:00:04.2]} 51. Kg1 {[%clk 0:00:28.7]} 51... Qe2 {[%clk 0:00:04.4]} 52. Rxa5
{[%clk 0:00:27.3]} 52... Qd2 {[%clk 0:00:04.4]} 53. Rac5 {[%clk 0:00:27]} 53...
Qb2 {[%clk 0:00:04.3]} 54. a5 {[%clk 0:00:26.6]} 54... Qa3 {[%clk 0:00:04.6]}
55. Kg2 {[%clk 0:00:25.4]} 55... g5 {[%clk 0:00:05.1]} 56. hxg5+ {[%clk
0:00:24.9]} 56... Kh5 {[%clk 0:00:05.7]} 57. g6+ {[%clk 0:00:24.6]} 57... Kxg6
{[%clk 0:00:05.5]} 58. a6 {[%clk 0:00:24.8]} 58... h5 {[%clk 0:00:02.6]} 59. Rc7
{[%clk 0:00:24.1]} 59... Kg5 {[%clk 0:00:02.9]} 60. a7 {[%clk 0:00:22.6]} 60...
Qa4 {[%clk 0:00:02.7]} 61. R1c5+ {[%clk 0:00:19]} 61... Kg4 {[%clk 0:00:01.9]}
62. Rg7# {[%clk 0:00:17.9]} 1-0

[Event "*** Titled Tuesday Blitz"]
[Site "Chess.com"]
[Date "2021.03.02"]
[Round "3"]
[White "ram1zan"]
[Black "Faqade"]
[Result "0-1"]
[WhiteElo "2953"]
[BlackElo "2714"]
[TimeControl "180+1"]
[EndTime "10:29:41 PST"]
[Termination "Faqade won by resignation"]

1. e4 {[%clk 0:03:00.9]} 1... c5 {[%clk 0:02:54.1]} 2. Nf3 {[%clk 0:02:54.7]}
2... e6 {[%clk 0:02:53.5]} 3. d4 {[%clk 0:02:54.2]} 3... cxd4 {[%clk 0:02:54.4]}
4. Nxd4 {[%clk 0:02:55]} 4... Nc6 {[%clk 0:02:55]} 5. Nc3 {[%clk 0:02:53.8]}
5... Qc7 {[%clk 0:02:55]} 6. a3 {[%clk 0:02:53.5]} 6... a6 {[%clk 0:02:54.5]} 7.
Be3 {[%clk 0:02:52.4]} 7... b5 {[%clk 0:02:52.8]} 8. Nxc6 {[%clk 0:02:50.2]}
8... Qxc6 {[%clk 0:02:53.2]} 9. Bd3 {[%clk 0:02:49]} 9... Bb7 {[%clk 0:02:52.8]}
10. Qg4 {[%clk 0:02:47.8]} 10... Nf6 {[%clk 0:02:51.5]} 11. Qg3 {[%clk
0:02:46.6]} 11... h5 {[%clk 0:02:51.4]} 12. h3 {[%clk 0:02:10.7]} 12... Rc8
{[%clk 0:02:42.2]} 13. O-O {[%clk 0:02:08.1]} 13... h4 {[%clk 0:02:28.3]} 14.
Qh2 {[%clk 0:01:56.1]} 14... d6 {[%clk 0:02:18.7]} 15. Rad1 {[%clk 0:01:24.6]}
15... Be7 {[%clk 0:02:17.2]} 16. Rfe1 {[%clk 0:01:07.7]} 16... Qc7 {[%clk
0:02:15.7]} 17. Qf4 {[%clk 0:00:59]} 17... g5 {[%clk 0:01:51.3]} 18. Qxg5 {[%clk
0:00:26.4]} 18... Nxe4 {[%clk 0:01:50.7]} 19. Qf4 {[%clk 0:00:23.9]} 19... Nxc3
{[%clk 0:01:40.5]} 20. bxc3 {[%clk 0:00:24.8]} 20... Rg8 {[%clk 0:01:23.2]} 21.
f3 {[%clk 0:00:18.4]} 21... Bg5 {[%clk 0:01:14.7]} 22. Qd4 {[%clk 0:00:10]}
22... Bxf3 {[%clk 0:01:09.2]} 23. Rd2 {[%clk 0:00:07.2]} 23... Qc6 {[%clk
0:01:00.7]} 24. Bf1 {[%clk 0:00:03.4]} 24... Be7 {[%clk 0:00:52.9]} 25. Qd3
{[%clk 0:00:03.2]} 25... Qxc3 {[%clk 0:00:45.1]} 26. Qh7 {[%clk 0:00:03]} 26...
Qg7 {[%clk 0:00:40.6]} 27. Qh6 {[%clk 0:00:03.5]} 27... Qxh6 {[%clk 0:00:30.1]}
28. Bxh6 {[%clk 0:00:04.4]} 28... Rc3 {[%clk 0:00:29.2]} 29. Bf4 {[%clk
0:00:02.6]} 29... d5 {[%clk 0:00:26.8]} 30. Be5 {[%clk 0:00:02.5]} 30... Rxa3
{[%clk 0:00:25.9]} 31. Kh1 {[%clk 0:00:01.8]} 31... Be4 {[%clk 0:00:24.1]} 32.
Kh2 {[%clk 0:00:02.4]} 32... Bb4 {[%clk 0:00:17.7]} 33. c3 {[%clk 0:00:01.2]}
33... Bxc3 {[%clk 0:00:17.2]} 34. Bxc3 {[%clk 0:00:02.1]} 34... Rxc3 {[%clk
0:00:17.7]} 35. Ra1 {[%clk 0:00:03]} 35... Rc6 {[%clk 0:00:17.7]} 36. Rxa6
{[%clk 0:00:03.3]} 36... Rxa6 {[%clk 0:00:18.3]} 37. Bxb5+ {[%clk 0:00:04]}
37... Ke7 {[%clk 0:00:18.9]} 38. Bxa6 {[%clk 0:00:04.8]} 38... e5 {[%clk
0:00:19.4]} 39. Bb7 {[%clk 0:00:04.7]} 39... Ke6 {[%clk 0:00:18.9]} 40. Kg1
{[%clk 0:00:04.8]} 40... f5 {[%clk 0:00:18.7]} 41. Kf1 {[%clk 0:00:04.6]} 41...
d4 {[%clk 0:00:18.6]} 42. Ba6 {[%clk 0:00:04.2]} 42... Ra8 {[%clk 0:00:17.7]}
43. Bc4+ {[%clk 0:00:04.4]} 43... Kd6 {[%clk 0:00:18.2]} 44. Rb2 {[%clk
0:00:04]} 44... Rc8 {[%clk 0:00:17.3]} 45. Be2 {[%clk 0:00:04]} 45... d3 {[%clk
0:00:17.1]} 46. Bd1 {[%clk 0:00:04.5]} 46... Kd5 {[%clk 0:00:16.2]} 47. Ke1
{[%clk 0:00:05]} 47... Kd4 {[%clk 0:00:15.9]} 48. Kd2 {[%clk 0:00:05.5]} 48...
Bxg2 {[%clk 0:00:15.6]} 49. Rb4+ {[%clk 0:00:05.5]} 49... Rc4 {[%clk 0:00:16]}
50. Rb5 {[%clk 0:00:05]} 50... e4 {[%clk 0:00:15.5]} 51. Rxf5 {[%clk 0:00:04.4]}
51... e3+ {[%clk 0:00:15.3]} 52. Ke1 {[%clk 0:00:05.3]} 52... d2+ {[%clk
0:00:15.1]} 53. Ke2 {[%clk 0:00:06.2]} 53... Rc1 {[%clk 0:00:12.3]} 54. Rf4+
{[%clk 0:00:05.9]} 54... Be4 {[%clk 0:00:12.7]} 55. Rxh4 {[%clk 0:00:05.1]}
55... Rxd1 {[%clk 0:00:12.6]} 56. Kxd1 {[%clk 0:00:04.4]} 56... Kd3 {[%clk
0:00:13.1]} 57. Rxe4 {[%clk 0:00:02.7]} 57... Kxe4 {[%clk 0:00:14]} 58. Ke2
{[%clk 0:00:03.6]} 58... Kf4 {[%clk 0:00:13.1]} 59. h4 {[%clk 0:00:04]} 59...
Kg4 {[%clk 0:00:12.8]} 60. h5 {[%clk 0:00:04]} 60... Kxh5 {[%clk 0:00:12.7]} 0-1

[Event "*** Titled Tuesday Blitz"]
[Site "Chess.com"]
[Date "2021.03.02"]
[Round "3"]
[White "PavelChernomordik"]
[Black "kikydu96"]
[Result "0-1"]
[WhiteElo "2386"]
[BlackElo "2571"]
[TimeControl "180+1"]
[EndTime "10:29:47 PST"]
[Termination "kikydu96 won on time"]

1. e4 {[%clk 0:03:00.9]} 1... c5 {[%clk 0:02:59.9]} 2. Nc3 {[%clk 0:03:00.3]}
2... d6 {[%clk 0:02:58.6]} 3. f4 {[%clk 0:02:59.9]} 3... Nf6 {[%clk 0:02:55.5]}
4. Nf3 {[%clk 0:02:59.6]} 4... a6 {[%clk 0:02:55.3]} 5. g3 {[%clk 0:02:56.6]}
5... b5 {[%clk 0:02:55.3]} 6. d3 {[%clk 0:02:55.8]} 6... Bb7 {[%clk 0:02:55]} 7.
Bg2 {[%clk 0:02:55.4]} 7... e6 {[%clk 0:02:55.5]} 8. Qe2 {[%clk 0:02:51.1]} 8...
Be7 {[%clk 0:02:55.8]} 9. O-O {[%clk 0:02:50.1]} 9... O-O {[%clk 0:02:55.3]} 10.
h3 {[%clk 0:02:45.4]} 10... Nc6 {[%clk 0:02:54.2]} 11. g4 {[%clk 0:02:35.6]}
11... Nd4 {[%clk 0:02:52.9]} 12. Qf2 {[%clk 0:02:32.9]} 12... Nxf3+ {[%clk
0:02:20.1]} 13. Bxf3 {[%clk 0:02:24.1]} 13... b4 {[%clk 0:02:18.5]} 14. Ne2
{[%clk 0:02:17.6]} 14... d5 {[%clk 0:02:16]} 15. e5 {[%clk 0:02:16.3]} 15... Nd7
{[%clk 0:02:16.2]} 16. Ng3 {[%clk 0:02:15.6]} 16... f6 {[%clk 0:02:16]} 17. exf6
{[%clk 0:02:12]} 17... Bxf6 {[%clk 0:02:16.9]} 18. Kh2 {[%clk 0:02:07.3]} 18...
Bh4 {[%clk 0:02:15.4]} 19. Qe2 {[%clk 0:02:04.9]} 19... Qb6 {[%clk 0:02:05.2]}
20. Bd2 {[%clk 0:01:56.2]} 20... Kh8 {[%clk 0:02:03.8]} 21. Rae1 {[%clk
0:01:54.9]} 21... Rae8 {[%clk 0:02:04.1]} 22. g5 {[%clk 0:01:47.7]} 22... Qd6
{[%clk 0:01:58.9]} 23. Bg4 {[%clk 0:01:38.1]} 23... a5 {[%clk 0:01:46.5]} 24.
Qg2 {[%clk 0:01:27]} 24... Bc6 {[%clk 0:01:35.9]} 25. Re2 {[%clk 0:01:23.1]}
25... e5 {[%clk 0:01:24.6]} 26. Nf5 {[%clk 0:01:18.6]} 26... Rxf5 {[%clk
0:01:23.9]} 27. Bxf5 {[%clk 0:01:17.9]} 27... Rf8 {[%clk 0:01:23.1]} 28. Qg4
{[%clk 0:01:13.5]} 28... Nb6 {[%clk 0:01:07.6]} 29. fxe5 {[%clk 0:01:07.8]}
29... Qe7 {[%clk 0:01:02.9]} 30. Qxh4 {[%clk 0:01:06.3]} 30... g6 {[%clk
0:01:03.4]} 31. Qg4 {[%clk 0:00:54.8]} 31... d4 {[%clk 0:00:51.3]} 32. Rff2
{[%clk 0:00:46]} 32... gxf5 {[%clk 0:00:48.8]} 33. Rxf5 {[%clk 0:00:45.4]} 33...
Re8 {[%clk 0:00:43.2]} 34. Qf4 {[%clk 0:00:44.3]} 34... Nd5 {[%clk 0:00:40.7]}
35. Qf1 {[%clk 0:00:39.4]} 35... Qe6 {[%clk 0:00:37.2]} 36. Rf8+ {[%clk
0:00:37.6]} 36... Kg7 {[%clk 0:00:34.9]} 37. Rxe8 {[%clk 0:00:37]} 37... Bxe8
{[%clk 0:00:31.7]} 38. Qf6+ {[%clk 0:00:30.9]} 38... Nxf6 {[%clk 0:00:29.3]} 39.
exf6+ {[%clk 0:00:30.5]} 39... Kf7 {[%clk 0:00:29.9]} 40. Rxe6 {[%clk
0:00:30.3]} 40... Kxe6 {[%clk 0:00:30.8]} 41. Kg3 {[%clk 0:00:28]} 41... Bh5
{[%clk 0:00:31.2]} 42. c3 {[%clk 0:00:26.3]} 42... Bg6 {[%clk 0:00:26.6]} 43.
cxd4 {[%clk 0:00:25.5]} 43... cxd4 {[%clk 0:00:26.2]} 44. Kf4 {[%clk 0:00:24.5]}
44... Bxd3 {[%clk 0:00:26.3]} 45. h4 {[%clk 0:00:23.7]} 45... Bb1 {[%clk
0:00:22.4]} 46. a3 {[%clk 0:00:23.3]} 46... bxa3 {[%clk 0:00:22.8]} 47. bxa3
{[%clk 0:00:23]} 47... a4 {[%clk 0:00:23.7]} 48. h5 {[%clk 0:00:22.4]} 48... Bc2
{[%clk 0:00:22.8]} 49. g6 {[%clk 0:00:19.3]} 49... hxg6 {[%clk 0:00:23.7]} 50.
h6 {[%clk 0:00:17]} 50... Kxf6 {[%clk 0:00:24.3]} 51. Bb4 {[%clk 0:00:16.1]}
51... g5+ {[%clk 0:00:24.1]} 52. Kg4 {[%clk 0:00:15.8]} 52... Bd1+ {[%clk
0:00:22.6]} 53. Kg3 {[%clk 0:00:14.9]} 53... Kg6 {[%clk 0:00:23.2]} 54. Bc5
{[%clk 0:00:14.5]} 54... d3 {[%clk 0:00:23.2]} 55. Be3 {[%clk 0:00:14.1]} 55...
Kxh6 {[%clk 0:00:23]} 56. Kf2 {[%clk 0:00:13.5]} 56... Kg6 {[%clk 0:00:23.2]}
57. Ke1 {[%clk 0:00:13.1]} 57... Bc2 {[%clk 0:00:23.4]} 58. Kf2 {[%clk
0:00:11.8]} 58... Kf5 {[%clk 0:00:23.9]} 59. Kg3 {[%clk 0:00:11.7]} 59... g4
{[%clk 0:00:23.2]} 60. Bd2 {[%clk 0:00:11.1]} 60... Bd1 {[%clk 0:00:23]} 61. Kf2
{[%clk 0:00:10.7]} 61... Ke4 {[%clk 0:00:23.5]} 62. Kg3 {[%clk 0:00:10.5]} 62...
Kd4 {[%clk 0:00:23.4]} 63. Kf4 {[%clk 0:00:10.2]} 63... Kc4 {[%clk 0:00:23.7]}
64. Bb4 {[%clk 0:00:06.8]} 64... Kb3 {[%clk 0:00:22.9]} 65. Ke3 {[%clk
0:00:04.3]} 65... Kc2 {[%clk 0:00:23]} 66. Be1 {[%clk 0:00:01.6]} 66... Bf3
{[%clk 0:00:22]} 0-1

[Event "*** Titled Tuesday Blitz"]
[Site "Chess.com"]
[Date "2021.03.02"]
[Round "3"]
[White "Politov_Pavel"]
[Black "manipun1"]
[Result "1-0"]
[WhiteElo "2408"]
[BlackElo "2226"]
[TimeControl "180+1"]
[EndTime "10:29:47 PST"]
[Termination "Politov_Pavel won by resignation"]

1. d4 {[%clk 0:03:00.9]} 1... d6 {[%clk 0:02:58.8]} 2. Nf3 {[%clk 0:03:01.1]}
2... g6 {[%clk 0:02:58.2]} 3. c4 {[%clk 0:02:59.3]} 3... Bg7 {[%clk 0:02:58.2]}
4. Nc3 {[%clk 0:02:58.9]} 4... Nf6 {[%clk 0:02:58.5]} 5. e4 {[%clk 0:02:59.4]}
5... O-O {[%clk 0:02:59]} 6. Be2 {[%clk 0:03:00]} 6... e5 {[%clk 0:02:58.6]} 7.
O-O {[%clk 0:02:59.9]} 7... Nc6 {[%clk 0:02:58.7]} 8. d5 {[%clk 0:03:00.2]} 8...
Ne7 {[%clk 0:02:58.7]} 9. Nd2 {[%clk 0:03:00.9]} 9... Nd7 {[%clk 0:02:58.9]} 10.
b4 {[%clk 0:03:00.9]} 10... f5 {[%clk 0:02:59.3]} 11. a4 {[%clk 0:03:00.3]}
11... Nf6 {[%clk 0:02:59.3]} 12. f3 {[%clk 0:02:59.6]} 12... h5 {[%clk
0:02:58.1]} 13. c5 {[%clk 0:02:59.7]} 13... Rf7 {[%clk 0:02:56.6]} 14. Nc4
{[%clk 0:02:58.9]} 14... Bf8 {[%clk 0:02:56]} 15. b5 {[%clk 0:02:51.6]} 15... f4
{[%clk 0:02:50.6]} 16. a5 {[%clk 0:02:50.6]} 16... g5 {[%clk 0:02:49.5]} 17. b6
{[%clk 0:02:50.2]} 17... axb6 {[%clk 0:02:48.4]} 18. cxb6 {[%clk 0:02:44.9]}
18... Ng6 {[%clk 0:02:47.1]} 19. bxc7 {[%clk 0:02:36.6]} 19... Rxc7 {[%clk
0:02:42.1]} 20. Nb5 {[%clk 0:02:35.9]} 20... Rc5 {[%clk 0:02:28.5]} 21. Qb3
{[%clk 0:02:26.4]} 21... g4 {[%clk 0:02:19.7]} 22. Ba3 {[%clk 0:02:24]} 22...
gxf3 {[%clk 0:02:03.1]} 23. Bxf3 {[%clk 0:02:17.8]} 23... Rxc4 {[%clk 0:01:43]}
24. Qxc4 {[%clk 0:02:17.1]} 24... Rxa5 {[%clk 0:01:41.3]} 25. Qc7 {[%clk
0:02:10.6]} 25... Qxc7 {[%clk 0:01:09]} 26. Nxc7 {[%clk 0:02:11.5]} 26... Bg4
{[%clk 0:01:08.9]} 27. Ne6 {[%clk 0:02:09.3]} 27... Be7 {[%clk 0:00:57.1]} 28.
Bb4 {[%clk 0:01:44.3]} 28... Rb5 {[%clk 0:00:55.3]} 29. Ra8+ {[%clk 0:01:42.5]}
29... Kf7 {[%clk 0:00:53.2]} 30. Ng5+ {[%clk 0:01:41.4]} 30... Kg7 {[%clk
0:00:52.2]} 31. Ba5 {[%clk 0:01:30.3]} 31... Nxd5 {[%clk 0:00:48.7]} 32. Bxg4
{[%clk 0:01:26.1]} 32... hxg4 {[%clk 0:00:46]} 33. Ne6+ {[%clk 0:01:25.4]} 33...
Kf6 {[%clk 0:00:44.2]} 34. exd5 {[%clk 0:01:25.6]} 34... Rxd5 {[%clk 0:00:43.5]}
35. Nc7 {[%clk 0:01:21.8]} 35... Rc5 {[%clk 0:00:41.4]} 36. Rd1 {[%clk
0:01:13.9]} 36... Rc2 {[%clk 0:00:40.2]} 37. Nd5+ {[%clk 0:01:13.5]} 37... Kf5
{[%clk 0:00:39.9]} 38. Nxe7+ {[%clk 0:01:07.5]} 38... Nxe7 {[%clk 0:00:39.8]}
39. Rxd6 {[%clk 0:00:47.1]} 39... Nc6 {[%clk 0:00:38.2]} 40. Be1 {[%clk
0:00:31.9]} 40... Rc1 {[%clk 0:00:31.5]} 41. Kf2 {[%clk 0:00:28.8]} 41... Nd4
{[%clk 0:00:30.3]} 42. Ra2 {[%clk 0:00:21]} 42... Ke4 {[%clk 0:00:25.8]} 43. Bd2
{[%clk 0:00:14.6]} 43... Rd1 {[%clk 0:00:21.5]} 44. Rb6 {[%clk 0:00:13]} 44...
Nf5 {[%clk 0:00:18.6]} 45. Rb4+ {[%clk 0:00:12.1]} 45... Nd4 {[%clk 0:00:18.7]}
46. Rxb7 {[%clk 0:00:11.8]} 46... f3 {[%clk 0:00:17.2]} 47. gxf3+ {[%clk
0:00:10.4]} 47... gxf3 {[%clk 0:00:16.9]} 48. Rb4 {[%clk 0:00:10.4]} 48... Rh1
{[%clk 0:00:16.3]} 49. Kg3 {[%clk 0:00:09.8]} 49... Rg1+ {[%clk 0:00:16.5]} 50.
Kh4 {[%clk 0:00:08.9]} 50... Rg2 {[%clk 0:00:16.6]} 51. h3 {[%clk 0:00:04.6]}
51... Kd3 {[%clk 0:00:15.9]} 52. Ra3+ {[%clk 0:00:04.6]} 52... Kxd2 {[%clk
0:00:15.8]} 53. Rb2+ {[%clk 0:00:05.3]} 53... Kc1 {[%clk 0:00:14.1]} 54. Rxg2
{[%clk 0:00:04.6]} 54... fxg2 {[%clk 0:00:13.6]} 55. Ra1+ {[%clk 0:00:04.8]}
55... Kb2 {[%clk 0:00:13.2]} 56. Kg3 {[%clk 0:00:05]} 56... Kxa1 {[%clk
0:00:12.2]} 57. Kxg2 {[%clk 0:00:05.6]} 57... Nf5 {[%clk 0:00:12.2]} 58. Kf3
{[%clk 0:00:04.9]} 58... Nh4+ {[%clk 0:00:12.2]} 59. Ke4 {[%clk 0:00:05.3]}
59... Ng6 {[%clk 0:00:12.5]} 60. Kf5 {[%clk 0:00:04.7]} 60... Nf4 {[%clk
0:00:12.6]} 61. h4 {[%clk 0:00:04]} 61... Ng2 {[%clk 0:00:12.7]} 62. h5 {[%clk
0:00:04.4]} 62... Nf4 {[%clk 0:00:12.8]} 63. h6 {[%clk 0:00:04.7]} 63... e4
{[%clk 0:00:11.5]} 64. h7 {[%clk 0:00:05.2]} 64... e3 {[%clk 0:00:11.7]} 65.
h8=Q+ {[%clk 0:00:05.4]} 65... Kb1 {[%clk 0:00:11.3]} 66. Kxf4 {[%clk 0:00:06]}
66... e2 {[%clk 0:00:11.3]} 67. Qe5 {[%clk 0:00:06.9]} 1-0